bitfinex-derivatives/quotes_SOLF0:USTF0_20241103
["timestamp","ask_amount","ask_price","bid_price","bid_amount"]
[1730669569142,13.20639004,163.27,163.17,3.28]
[1730669569453,13.20639004,163.24,163.14,4.6461]
[1730669570030,14.61309004,163.24,163.19,3.0648]
[1730669570246,13.20639004,163.22,163.14,3.28]
[1730669570640,13.20639004,163.22,163.14,3.0658]
[1730669570835,13.20639004,163.2,163.09,1.3661]
[1730669571144,13.20639004,163.17,163.06,13.20639004]
[1730669571443,13.20639004,163.17,163.04,3.28]
[1730669571444,4.6847,163.16,163.04,3.28]
[1730669571746,4.6847,163.16,163.05,1.12655135]
[1730669572249,4.6847,163.16,163.04,3.28]
[1730669572452,7.7503,163.16,163.1,3.0665]
[1730669572636,1.4067,163.15,163.1,3.0665]
[1730669572836,1.4067,163.15,163.03,21.19848716]
[1730669573055,1.4067,163.15,163.06,3.0673]
[1730669573344,1.4067,163.15,163.03,24.47848716]
[1730669574240,1.4067,163.15,163.11,3.0663]
[1730669574748,1.4067,163.15,163.03,24.47848716]
[1730669574947,1.4067,163.15,163.11,3.0663]
[1730669575547,1.4067,163.15,163.03,24.47848716]
[1730669576046,1.4067,163.15,163.12,3.0661]
[1730669576249,1.4067,163.15,163.03,27.5120783]
[1730669576642,1.4067,163.15,163.11,3.0663]
[1730669577345,4.4725,163.15,163.09,3.0667]
[1730669578052,21.19848716,163.11,162.94,21.19848716]
[1730669578256,21.19848716,163.08,162.95,2.44943145]
[1730669578447,3.28,163.07,162.96,1.12713145]
[1730669578642,3.28,163.07,162.95,1.3223]
[1730669579143,21.19848716,163.08,162.95,1.3223]
[1730669579345,3.28,163.06,162.95,1.3223]
[1730669579946,3.28,163.06,162.96,1.2968]
[1730669580353,86.64261795,163.11,162.96,1.2968]
[1730669580552,3.28,163.1,162.96,1.2968]
[1730669580846,3.28,163.1,163.04,3.0676]
[1730669581045,3.28,163.1,162.97,21.19848716]
[1730669581251,86.64261795,163.11,162.97,21.19848716]
[1730669581456,3.28,163.09,162.97,21.19848716]
[1730669581842,3.28,163.09,163.06,3.0673]
[1730669582348,86.64261795,163.11,162.97,21.19848716]
[1730669582349,65.44413079,163.11,163.07,3.067]
[1730669582554,3.28,163.1,163.07,3.067]
[1730669584043,3.28,163.1,163.05,3.0674]
[1730669584356,3.28,163.1,162.98,3.28]
[1730669584952,3.28,163.1,163.06,3.0672]
[1730669585348,3.28,163.1,163.0,21.19848716]
[1730669586449,3.28,163.1,162.99,3.28]
[1730669586650,6.3468,163.1,163.03,3.0678]
[1730669586951,3.28,163.1,163.03,3.0678]
[1730669587154,3.28,163.1,162.99,3.28]
[1730669587550,3.28,163.1,162.97,21.19848716]
[1730669588052,21.19848716,163.08,162.96,1.2968]
[1730669588251,21.19848716,163.08,162.95,1.3223]
[1730669588961,3.0676,163.05,162.99,3.0686]
[1730669589164,6.3476,163.05,162.99,3.0686]
[1730669589660,6.3476,163.05,162.95,1.3223]
[1730669589661,3.28,163.05,162.95,1.3223]
[1730669589850,3.28,163.09,163.04,3.0676]
[1730669590247,21.19848716,163.08,162.92,7.72578775]
[1730669590459,3.0674,163.06,163.0,3.0684]
[1730669590752,21.19848716,163.08,162.93,1.3956]
[1730669590943,3.0683,163.02,162.94,1.12747063]
[1730669591138,3.0683,163.02,162.93,1.3956]
[1730669591454,3.28,163.03,162.92,1.3787]
[1730669591656,3.0688,162.99,162.93,3.0697]
[1730669591956,21.19848716,163.02,162.9,3.28]
[1730669592355,3.069,162.98,162.92,3.07]
[1730669592546,3.28,162.98,162.92,3.07]
[1730669592749,21.19848716,162.96,162.8,3.28]
[1730669592954,3.0701,162.92,162.86,3.071]
[1730669593161,3.28,162.92,162.8,3.28]
[1730669593543,3.0704,162.9,162.83,3.0715]
[1730669594163,21.19848716,162.9,162.78,3.28]
[1730669595552,3.28,162.9,162.78,3.28]
[1730669595753,21.19848716,162.93,162.78,3.28]
[1730669596060,3.28,162.93,162.79,22.32690979]
[1730669596357,3.28,162.94,162.85,3.0712]
[1730669596541,3.28,162.94,162.83,3.28]
[1730669596947,7.24,162.95,162.83,3.28]
[1730669597254,7.24,162.95,162.84,1.4118]
[1730669597553,18.38,163.07,162.84,1.4118]
[1730669597554,3.28,162.98,162.85,21.19848716]
[1730669597756,24.47848716,162.99,162.86,1.4038]
[1730669598155,3.891,163.02,162.9,21.19848716]
[1730669598361,2.6048,163.02,162.91,3.28]
[1730669598662,3.28,163.08,162.93,21.19848716]
[1730669598851,3.28,163.08,162.94,2.3718]
[1730669599168,3.28,163.08,162.96,21.19848716]
[1730669599458,3.28,163.08,162.97,3.28]
[1730669600950,3.28,163.08,163.02,3.0679]
[1730669601147,3.9365,163.1,162.97,3.28]
[1730669601363,2.6048,163.1,162.99,21.19848716]
[1730669601559,2.6048,163.1,163.06,3.0674]
[1730669602159,2.6048,163.1,163.05,3.0675]
[1730669603164,2.6048,163.1,163.01,3.52]
[1730669603766,2.6048,163.1,163.06,3.0674]
[1730669604065,2.6048,163.1,163.01,3.52]
[1730669604253,2.6048,163.1,163.02,3.0681]
[1730669604872,23.80328716,163.1,163.0,3.0684]
[1730669605164,23.80328716,163.1,162.97,3.52]
[1730669605364,3.067,163.08,162.97,3.52]
[1730669607070,21.19848716,163.07,162.96,3.52]
[1730669607567,21.19848716,163.07,162.97,3.0689]
[1730669607765,21.19848716,163.04,162.92,3.52]
[1730669607962,3.52,163.03,162.94,3.0695]
[1730669609273,3.0686,163.0,162.94,3.0695]
[1730669610070,3.0689,162.98,162.92,6.5899]
[1730669610273,3.0689,162.98,162.92,3.0699]
[1730669610472,3.52,162.98,162.87,21.19848716]
[1730669610668,3.52,162.97,162.81,21.19848716]
[1730669610970,3.52,162.97,162.83,1.3423]
[1730669611268,6.5892,162.97,162.9,3.0702]
[1730669611455,21.19848716,162.98,162.83,1.3423]
[1730669611660,21.19848716,162.98,162.84,1.12823297]
[1730669611661,3.52,162.97,162.84,1.12823297]
[1730669611961,3.52,162.96,162.92,3.0699]
[1730669612675,3.52,162.96,162.84,22.54548716]
[1730669612873,3.52,162.96,162.85,1.12818663]
[1730669613276,3.52,162.96,162.92,3.07]
[1730669613970,3.52,162.96,162.84,22.54548716]
[1730669614169,3.52,162.96,162.91,3.07]
[1730669615062,3.52,162.96,162.84,1.347]
[1730669615274,3.52,162.96,162.88,3.0706]
[1730669615575,3.0697,162.94,162.88,3.0706]
[1730669617165,3.0697,162.94,162.89,3.0706]
[1730669617479,3.52,162.96,162.84,1.347]
[1730669617868,6.5893,162.96,162.9,3.0702]
[1730669618670,6.5893,162.96,162.84,1.347]
[1730669618978,3.52,162.95,162.84,22.54548716]
[1730669619371,3.52,162.95,162.87,3.0708]
[1730669619564,3.52,162.95,162.84,22.54548716]
[1730669619962,4.4767,162.97,162.91,3.0701]
[1730669620169,3.52,162.96,162.91,3.0701]
[1730669620881,1.31,162.99,162.87,3.52]
[1730669621065,4.83,162.99,162.87,24.71848716]
[1730669621772,3.52,162.99,162.87,24.71848716]
[1730669623075,21.19848716,163.03,162.87,24.71848716]
[1730669623272,1.3453,163.04,162.9,21.19848716]
[1730669623273,3.52,163.02,162.9,21.19848716]
[1730669623472,3.52,163.02,162.93,21.19848716]
[1730669623678,3.52,163.02,162.94,3.52]
[1730669624179,1.3453,163.04,162.94,4.9295]
[1730669624571,1.3453,163.04,162.97,3.0691]
[1730669624870,1.3453,163.04,162.94,4.9295]
[1730669625069,1.3453,163.04,163.0,3.0685]
[1730669625271,1.3453,163.04,162.94,4.9295]
[1730669625670,3.0681,163.03,162.97,3.0689]
[1730669625872,3.0681,163.03,162.94,4.9295]
[1730669626473,3.0681,163.03,162.98,3.0688]
[1730669630876,3.52,163.06,162.94,3.52]
[1730669631081,3.52,163.06,162.93,21.19848716]
[1730669631391,3.52,163.06,162.93,24.71848716]
[1730669631884,3.0675,163.06,162.93,24.71848716]
[1730669632079,3.5,163.06,162.93,24.71848716]
[1730669632277,1.3274,163.07,162.96,21.19848716]
[1730669632481,3.5,163.09,162.96,27.33698716]
[1730669632679,22.59278716,163.14,162.99,21.19848716]
[1730669632884,1.3943,163.14,163.07,3.067]
[1730669633087,3.0662,163.13,163.0,7.0365]
[1730669633286,3.0662,163.13,163.02,21.19848716]
[1730669633578,3.0662,163.13,163.05,3.0675]
[1730669633780,3.0662,163.13,163.02,21.19848716]
[1730669634480,2.6407,163.21,163.08,21.19848716]
[1730669634779,2.6407,163.21,163.16,3.0655]
[1730669634985,4.8891,163.24,163.11,21.19848716]
[1730669634986,4.8891,163.24,163.14,3.5]
[1730669635482,3.0636,163.27,163.14,24.69848716]
[1730669635689,27.36408716,163.28,163.14,27.7407315]
[1730669635690,2.6656,163.28,163.14,27.7407315]
[1730669636073,2.6656,163.28,163.17,21.19848716]
[1730669636475,2.6656,163.28,163.21,3.0645]
[1730669637381,22.58758716,163.34,163.2,21.19848716]
[1730669637575,22.58758716,163.34,163.23,21.19848716]
[1730669637576,1.3891,163.34,163.23,21.19848716]
[1730669637777,1.3891,163.34,163.24,3.5]
[1730669637979,1.3891,163.34,163.27,3.0634]
[1730669639387,4.4512,163.34,163.27,3.0634]
[1730669640290,3.0625,163.32,163.25,3.0637]
[1730669640981,3.0625,163.32,163.26,3.0636]
[1730669643892,1.3891,163.34,163.24,3.5]
[1730669644203,22.47648716,163.4,163.26,21.19848716]
[1730669644500,3.5,163.39,163.26,21.19848716]
[1730669645299,3.0615,163.38,163.32,3.0623]
[1730669645693,3.5,163.39,163.29,3.5]
[1730669646899,21.19848716,163.37,163.25,3.5]
[1730669647294,24.69848716,163.39,163.25,3.5]
[1730669648185,24.69848716,163.39,163.31,3.0626]
[1730669648388,3.5,163.38,163.31,3.0626]
[1730669648589,3.0619,163.36,163.31,3.0626]
[1730669648992,3.5,163.38,163.28,3.0631]
[1730669649188,3.0623,163.34,163.25,3.5]
[1730669649498,3.0623,163.34,163.29,3.0629]
[1730669651698,3.5,163.33,163.21,3.6966]
[1730669651998,6.1246,163.33,163.21,7.1966]
[1730669652198,6.1246,163.33,163.25,3.0637]
[1730669652199,3.0629,163.3,163.25,3.0637]
[1730669652707,6.1246,163.33,163.21,7.1966]
[1730669652891,2.6246,163.33,163.24,21.19848716]
[1730669653093,2.6246,163.33,163.21,3.6966]
[1730669653398,3.0632,163.29,163.24,3.0638]
[1730669654093,3.0633,163.28,163.23,3.0642]
[1730669654498,24.69848716,163.31,163.18,21.19848716]
[1730669654688,1.273,163.3,163.18,24.69848716]
[1730669655085,1.273,163.3,163.16,2.7591]
[1730669655286,21.19848716,163.29,163.16,4.9018]
[1730669655889,3.0636,163.26,163.2,3.0646]
[1730669656204,3.0636,163.26,163.16,4.9018]
[1730669657189,3.0634,163.28,163.22,3.0643]
[1730669657390,1.273,163.3,163.16,4.9018]
[1730669658202,3.0638,163.26,163.2,3.0646]
[1730669658402,1.273,163.3,163.16,4.9018]
[1730669658590,21.19848716,163.29,163.16,4.9018]
[1730669658994,21.19848716,163.29,163.16,3.5]
[1730669659208,39.57848716,163.29,163.14,3.5]
[1730669659395,3.0644,163.22,163.17,3.0652]
[1730669659591,24.69848716,163.23,163.09,21.19848716]
[1730669659796,4.0495,163.21,163.1,4.8573]
[1730669660204,4.0495,163.21,163.13,3.066]
[1730669660205,7.1142,163.21,163.13,3.066]
[1730669660401,7.1142,163.21,163.1,4.8573]
[1730669660813,7.1142,163.21,163.15,3.0655]
[1730669661002,1.3933,163.21,163.11,21.19848716]
[1730669661314,3.5,163.22,163.11,21.19848716]
[1730669661511,3.5,163.22,163.17,3.0653]
[1730669661815,3.5,163.22,163.11,21.19848716]
[1730669662107,3.5,163.22,163.17,3.0652]
[1730669662508,3.5,163.22,163.11,21.19848716]
[1730669662804,6.5438,163.25,163.2,3.0646]
[1730669663603,3.48,163.25,163.2,3.0646]
[1730669663805,3.064,163.24,163.2,3.0646]
[1730669663999,3.064,163.24,163.15,24.67848716]
[1730669664000,3.48,163.25,163.15,24.67848716]
[1730669664318,3.48,163.25,163.14,3.48]
[1730669664518,1.3095,163.24,163.14,3.48]
[1730669664716,3.0648,163.2,163.16,3.0655]
[1730669664916,3.48,163.2,163.09,24.67848716]
[1730669665101,1.3736,163.19,163.06,22.54828716]
[1730669665310,3.0657,163.16,163.11,3.0663]
[1730669665517,1.3736,163.19,163.07,3.48]
[1730669666018,3.0659,163.15,163.1,3.0666]
[1730669666205,1.3736,163.19,163.05,1.357]
[1730669666206,21.19848716,163.18,163.05,1.357]
[1730669666513,3.48,163.17,163.05,1.357]
[1730669666706,3.48,163.17,163.06,21.19848716]
[1730669667407,3.48,163.17,163.12,3.0661]
[1730669667610,1.3736,163.19,163.09,21.19848716]
[1730669667812,1.3736,163.19,163.09,24.67848716]
[1730669668115,3.0654,163.17,163.11,3.0663]
[1730669668518,1.3736,163.19,163.09,24.67848716]
[1730669668717,3.0656,163.16,163.11,3.0664]
[1730669669716,21.19848716,163.18,163.05,4.837]
[1730669670323,3.0657,163.15,163.1,3.0665]
[1730669670617,21.19848716,163.18,163.05,4.837]
[1730669670816,1.3736,163.19,163.06,21.19848716]
[1730669672217,3.0656,163.16,163.11,3.0663]
[1730669672516,1.3736,163.19,163.06,21.19848716]
[1730669672720,21.19848716,163.18,163.05,1.357]
[1730669673113,3.066,163.14,163.09,3.0668]
[1730669674114,3.48,163.16,163.05,1.357]
[1730669674314,3.0657,163.15,163.11,3.0663]
[1730669674626,3.48,163.16,163.11,3.0663]
[1730669674825,6.5456,163.16,163.12,3.0662]
[1730669675022,3.48,163.16,163.05,1.357]
[1730669675524,3.0658,163.15,163.11,3.0664]
[1730669676528,3.48,163.16,163.05,1.357]
[1730669676730,6.5453,163.18,163.14,3.0658]
[1730669676928,6.5453,163.18,163.07,21.19848716]
[1730669676929,3.48,163.18,163.07,21.19848716]
[1730669677725,3.0654,163.17,163.07,21.19848716]
[1730669677925,3.48,163.18,163.07,21.19848716]
[1730669678122,6.5452,163.18,163.1,3.0666]
[1730669678334,1.3736,163.19,163.07,21.19848716]
[1730669678629,4.8536,163.19,163.07,21.19848716]
[1730669678927,3.0654,163.17,163.14,3.0658]
[1730669679137,4.8536,163.19,163.07,21.19848716]
[1730669679316,4.8536,163.19,163.08,0.9577]
[1730669679623,4.8536,163.19,163.09,3.48]
[1730669679826,4.8536,163.19,163.09,4.8327]
[1730669680430,3.0653,163.17,163.12,3.0663]
[1730669680620,4.8536,163.19,163.09,3.48]
[1730669680823,3.0655,163.16,163.09,3.48]
[1730669681928,4.8536,163.19,163.09,3.48]
[1730669682126,3.0654,163.17,163.12,3.0662]
[1730669682734,4.8536,163.19,163.1,3.0665]
[1730669682928,4.8536,163.19,163.09,3.48]
[1730669683729,3.0657,163.15,163.11,3.0664]
[1730669684328,4.8536,163.19,163.09,3.48]
[1730669685220,3.0653,163.18,163.13,3.066]
[1730669685416,3.0653,163.18,163.09,3.48]
[1730669685629,4.8536,163.19,163.09,3.48]
[1730669685928,3.0651,163.18,163.14,3.0657]
[1730669687029,3.0651,163.18,163.09,3.48]
[1730669687925,3.0652,163.18,163.09,3.48]
[1730669689434,3.0652,163.18,163.14,3.0658]
[1730669689634,3.0652,163.18,163.09,16.72263864]
[1730669689635,13.24263864,163.16,163.05,1.357]
[1730669689830,1.3448,163.15,163.05,1.357]
[1730669690031,3.48,163.14,163.05,1.357]
[1730669690433,3.48,163.14,163.09,3.0667]
[1730669690639,3.48,163.14,163.05,1.357]
[1730669690936,6.546,163.14,163.09,3.0668]
[1730669691139,3.48,163.14,163.09,3.0668]
[1730669692333,18.38,163.13,162.99,21.20122708]
[1730669692532,1.3823,163.13,162.99,21.20122708]
[1730669692933,1.3823,163.13,163.05,3.0674]
[1730669693438,3.0667,163.1,163.06,3.0673]
[1730669693639,4.8423,163.13,163.01,21.20122708]
[1730669693838,4.8423,163.13,163.01,22.16012708]
[1730669694132,4.8423,163.13,163.08,3.0669]
[1730669694133,3.0663,163.12,163.08,3.0669]
[1730669694332,3.0663,163.12,163.01,22.16012708]
[1730669694333,3.46,163.13,163.05,21.20122708]
[1730669694535,3.46,163.13,163.05,24.66122708]
[1730669695534,1.3448,163.15,163.05,24.66122708]
[1730669696334,3.0659,163.14,163.09,3.0667]
[1730669696535,1.3448,163.15,163.05,24.66122708]
[1730669697438,3.46,163.17,163.05,24.66122708]
[1730669697638,2.7559,163.19,163.06,2.6422]
[1730669697946,3.0654,163.17,163.11,3.0663]
[1730669698741,3.0655,163.16,163.11,3.0663]
[1730669699040,3.0655,163.16,163.12,3.0662]
[1730669702546,3.0653,163.18,163.07,21.20122708]
[1730669702742,4.7846,163.21,163.1,21.20122708]
[1730669703041,4.7846,163.21,163.1,27.75478038]
[1730669703238,3.0649,163.2,163.15,3.0656]
[1730669703433,3.0649,163.2,163.1,27.75478038]
[1730669703633,4.7846,163.21,163.1,24.66122708]
[1730669703844,3.0648,163.2,163.1,24.66122708]
[1730669705035,3.0648,163.2,163.15,3.0656]
[1730669705237,3.0656,163.16,163.1,3.46]
[1730669705436,1.343,163.19,163.1,3.46]
[1730669705634,1.3246,163.21,163.1,3.46]
[1730669705859,22.54732708,163.23,163.1,24.66122708]
[1730669705860,3.46,163.22,163.1,24.66122708]
[1730669706250,6.5245,163.22,163.1,24.66122708]
[1730669706555,3.46,163.22,163.1,24.66122708]
[1730669706740,3.46,163.22,163.16,3.0655]
[1730669706936,3.46,163.22,163.1,24.66122708]
[1730669707252,3.46,163.22,163.1,3.46]
[1730669707442,3.0651,163.19,163.1,3.46]
[1730669708042,3.0651,163.19,163.14,3.0658]
[1730669708246,1.323,163.21,163.1,3.46]
[1730669708548,1.2935,163.2,163.1,3.46]
[1730669708745,3.0655,163.17,163.12,3.0662]
[1730669708946,3.0655,163.17,163.08,4.419]
[1730669708947,1.2935,163.2,163.08,4.419]
[1730669709145,3.0656,163.16,163.12,3.0662]
[1730669709344,1.2935,163.2,163.12,3.0662]
[1730669709540,1.2935,163.2,163.08,4.419]
[1730669709744,3.0653,163.17,163.13,3.066]
[1730669710554,22.49472708,163.2,163.06,6.1022]
[1730669710856,1.3945,163.16,163.06,1.3636]
[1730669711063,1.3945,163.16,163.08,3.0668]
[1730669711064,3.0661,163.13,163.08,3.0668]
[1730669711259,3.0661,163.13,163.06,1.3636]
[1730669711658,3.0659,163.14,163.09,3.0668]
[1730669713373,3.0657,163.15,163.11,3.0664]
[1730669713551,1.3945,163.16,163.08,13.24718166]
[1730669713752,3.46,163.18,163.08,13.24718166]
[1730669714563,3.0656,163.16,163.11,3.0664]
[1730669717362,3.46,163.18,163.14,3.0657]
[1730669717865,3.46,163.18,163.08,13.24718166]
[1730669718070,6.5253,163.18,163.13,3.066]
[1730669718563,3.0653,163.17,163.13,3.066]
[1730669718767,16.70718166,163.18,163.1,3.0666]
[1730669718966,16.70718166,163.18,163.06,18.07078166]
[1730669719367,3.46,163.18,163.11,3.0664]
[1730669719560,6.5253,163.18,163.08,13.24718166]
[1730669719759,3.46,163.18,163.08,13.24718166]
[1730669720665,3.46,163.18,163.15,3.0656]
[1730669720881,15.83798166,163.2,163.15,3.0656]
[1730669721063,19.19798166,163.2,163.15,3.0656]
[1730669721271,3.065,163.19,163.15,3.0656]
[1730669722868,3.065,163.19,163.16,3.0654]
[1730669723965,3.0655,163.16,163.13,3.066]
[1730669724773,3.0654,163.17,163.14,3.0657]
[1730669726471,3.0655,163.16,163.13,3.066]
[1730669726974,3.0658,163.15,163.12,3.0662]
[1730669727272,19.19798166,163.2,163.12,3.0662]
[1730669727461,19.19798166,163.2,163.08,16.60718166]
[1730669727772,19.19798166,163.2,163.11,3.0663]
[1730669728171,3.0657,163.15,163.11,3.0664]
[1730669728363,13.24718166,163.18,163.11,3.0664]
[1730669728562,13.24718166,163.18,163.07,2.2538]
[1730669728763,13.24718166,163.18,163.06,14.61078166]
[1730669729067,3.066,163.14,163.1,3.0665]
[1730669729764,3.36,163.15,163.13,3.0659]
[1730669730171,3.36,163.15,163.08,13.24718166]
[1730669732670,3.36,163.15,163.12,3.0662]
[1730669737678,3.36,163.15,163.08,13.24718166]
[1730669738069,6.4258,163.15,163.1,3.0665]
[1730669738469,6.4258,163.15,163.08,13.24718166]
[1730669738770,6.4258,163.15,163.11,3.0663]
[1730669741679,3.0662,163.13,163.08,11.54390738]
[1730669741982,3.0662,163.13,163.08,8.47700738]
[1730669742179,11.83700738,163.15,163.08,8.47700738]
[1730669742180,3.0659,163.14,163.09,3.0667]
[1730669743469,11.83700738,163.15,163.09,3.0667]
[1730669743672,3.0661,163.13,163.09,3.0667]
[1730669743873,3.0661,163.13,163.08,8.47700738]
[1730669744090,3.0661,163.13,163.1,3.0666]
[1730669744686,3.0661,163.13,163.08,8.47700738]
[1730669744981,3.0673,163.07,163.01,8.47700738]
[1730669745174,8.47700738,163.09,163.01,8.47700738]
[1730669745377,8.47700738,163.09,163.02,3.068]
[1730669745577,3.0673,163.07,163.02,3.068]
[1730669746670,8.47700738,163.09,163.0,1.3465]
[1730669746969,14.52580738,163.12,163.05,8.47700738]
[1730669747386,3.0665,163.11,163.03,13.25234869]
[1730669748283,3.0665,163.11,163.0,1.3465]
[1730669748284,19.30114869,163.12,163.0,14.59884869]
[1730669748484,3.0667,163.1,163.0,14.59884869]
[1730669750289,3.0667,163.1,163.06,3.0673]
[1730669750688,4.7498,163.12,163.03,13.25234869]
[1730669750986,4.7498,163.12,163.08,3.0669]
[1730669751184,1.3898,163.12,163.03,16.55234869]
[1730669751380,6.366,163.14,163.09,3.0668]
[1730669751584,3.3,163.14,163.03,16.55234869]
[1730669752189,3.0663,163.12,163.03,16.55234869]
[1730669752589,3.0663,163.12,163.07,3.067]
[1730669752887,3.0661,163.13,163.03,16.55234869]
[1730669753291,3.0661,163.13,163.08,3.0669]
[1730669753979,2.7155,163.16,163.08,13.25234869]
[1730669754892,3.0658,163.15,163.11,3.0664]
[1730669755681,3.0658,163.15,163.08,13.25234869]
[1730669755884,3.0658,163.15,163.12,3.0662]
[1730669756589,1.3614,163.16,163.13,3.066]
[1730669756783,30.5902,163.51,163.06,3.09695818]
[1730669756784,15.95634869,163.22,163.1,13.25234869]
[1730669756986,3.3,163.21,163.1,13.25234869]
[1730669757187,3.0648,163.2,163.1,13.25234869]
[1730669758693,3.0648,163.2,163.15,3.0656]
[1730669759090,3.0651,163.18,163.13,3.0659]
[1730669759280,3.0651,163.18,163.07,20.17774869]
[1730669760595,3.0651,163.18,163.1,3.0666]
[1730669760892,3.0651,163.18,163.07,20.17774869]
[1730669761093,3.0651,163.18,163.11,13.25234869]
[1730669761701,3.0651,163.18,163.13,3.0659]
[1730669762197,3.0651,163.18,163.11,13.25234869]
[1730669762198,3.0651,163.18,163.14,3.0658]
[1730669762401,4.375,163.22,163.13,13.25234869]
[1730669762590,1.3049,163.23,163.16,13.25234869]
[1730669762790,65.39194475,163.24,163.19,3.0648]
[1730669763397,65.39194475,163.24,163.18,3.0651]
[1730669763601,13.25234869,163.23,163.13,3.3]
[1730669763808,13.25234869,163.23,163.11,13.25234869]
[1730669764103,3.0649,163.2,163.16,3.0655]
[1730669769307,3.0649,163.2,163.16,11.54630064]
[1730669777212,8.48080064,163.22,163.16,8.48080064]
[1730669777818,8.48080064,163.19,163.11,8.48080064]
[1730669778017,8.48080064,163.17,163.11,8.48080064]
[1730669778418,8.48080064,163.17,163.12,3.0661]
[1730669778621,8.48080064,163.17,163.11,8.48080064]
[1730669779415,3.0656,163.16,163.12,3.0661]
[1730669780022,8.48080064,163.17,163.11,8.48080064]
[1730669780316,1.4097,163.18,163.1,11.54730064]
[1730669780317,8.48080064,163.15,163.1,11.54730064]
[1730669780714,3.0657,163.15,163.11,3.0663]
[1730669786037,3.0662,163.13,163.09,3.0668]
[1730669788422,3.3,163.16,163.11,8.48080064]
[1730669788636,8.48080064,163.17,163.11,8.48080064]
[1730669789132,3.0655,163.16,163.13,3.066]
[1730669789443,3.0655,163.16,163.11,8.48080064]
[1730669791131,8.48080064,163.28,163.22,8.48080064]
[1730669791341,11.78080064,163.28,163.22,8.48080064]
[1730669792140,3.0636,163.26,163.22,11.54510064]
[1730669792435,8.48080064,163.27,163.21,8.48080064]
[1730669793233,3.0638,163.25,163.21,11.54520064]
[1730669793432,3.0638,163.25,163.21,3.0644]
[1730669793634,3.3,163.28,163.18,13.24256471]
[1730669794244,3.0636,163.26,163.18,13.24256471]
[1730669794448,3.3,163.28,163.18,13.24256471]
[1730669794641,3.0638,163.25,163.21,3.0645]
[1730669795034,3.3,163.28,163.21,3.0645]
[1730669795341,3.0639,163.25,163.21,3.0645]
[1730669795942,3.064,163.24,163.21,3.0645]
[1730669796338,3.0643,163.23,163.19,3.0648]
[1730669796643,13.24256471,163.27,163.16,13.24256471]
[1730669797541,13.24256471,163.27,163.19,3.0648]
[1730669797542,3.0642,163.23,163.19,3.0648]
[1730669797746,13.24256471,163.25,163.14,13.24256471]
[1730669798143,3.0647,163.21,163.17,3.0653]
[1730669798644,3.065,163.19,163.15,3.0656]
[1730669799341,3.065,163.19,163.16,3.0655]
[1730669800845,3.0652,163.18,163.14,3.0658]
[1730669802043,3.0651,163.18,163.11,13.24256471]
[1730669802241,3.0651,163.18,163.13,3.066]
[1730669802447,3.3,163.18,163.09,13.24256471]
[1730669802653,3.0662,163.13,163.06,13.24256471]
[1730669802848,3.0662,163.13,163.08,3.0669]
[1730669803051,16.54256471,163.18,163.06,13.24256471]
[1730669803649,16.54256471,163.18,163.08,3.0669]
[1730669803851,3.0661,163.13,163.08,3.0669]
[1730669804149,3.0661,163.13,163.06,13.24256471]
[1730669804150,16.54256471,163.18,163.07,3.0671]
[1730669804537,3.0664,163.12,163.07,3.0671]
[1730669805245,3.0664,163.12,163.07,3.0672]
[1730669808357,3.0664,163.12,163.05,1.2863]
[1730669808554,3.0664,163.12,163.08,3.067]
[1730669811449,3.0663,163.12,163.05,1.2863]
[1730669812047,3.0663,163.12,163.07,3.0671]